[Event "Early-Titled-Tuesday-Blitz-January-30-2024"]
[Site "Chess.com"]
[Date "2024.01.30"]
[Round "9"]
[White "scarabee43"]
[Black "NovozhilovSemen"]
[Result "1-0"]
[WhiteElo "2845"]
[BlackElo "2668"]
[TimeControl "180+1"]
[EndTime "9:49:58 PST"]
[Termination "scarabee43 won by resignation"]

1. Nf3 {[%clk 0:02:59.3]} 1... Nf6 {[%clk 0:02:59]} 2. c4 {[%clk 0:02:59.3]}
2... c5 {[%clk 0:02:58]} 3. Nc3 {[%clk 0:02:59.2]} 3... e6 {[%clk 0:02:58.1]} 4.
e3 {[%clk 0:02:55.6]} 4... d5 {[%clk 0:02:57.8]} 5. d4 {[%clk 0:02:55.3]} 5...
Nc6 {[%clk 0:02:57.7]} 6. cxd5 {[%clk 0:02:52.5]} 6... exd5 {[%clk 0:02:57.6]}
7. b3 {[%clk 0:02:51.7]} 7... cxd4 {[%clk 0:02:56.8]} 8. Nxd4 {[%clk 0:02:51.4]}
8... Bb4 {[%clk 0:02:56.7]} 9. Bd2 {[%clk 0:02:42.2]} 9... Nxd4 {[%clk
0:02:54.2]} 10. exd4 {[%clk 0:02:42.6]} 10... O-O {[%clk 0:02:54]} 11. Be2
{[%clk 0:02:41.7]} 11... Qa5 {[%clk 0:02:49.8]} 12. Rc1 {[%clk 0:02:29.6]} 12...
Bf5 {[%clk 0:02:41.8]} 13. a3 {[%clk 0:01:52.1]} 13... Qxa3 {[%clk 0:02:09.1]}
14. Ra1 {[%clk 0:01:34.2]} 14... Bc2 {[%clk 0:02:08.5]} 15. Rxa3 {[%clk
0:00:48.6]} 15... Bxd1 {[%clk 0:02:08.1]} 16. Ra4 {[%clk 0:00:48.4]} 16... Bxc3
{[%clk 0:02:07.2]} 17. Bxc3 {[%clk 0:00:38.9]} 17... Bxe2 {[%clk 0:02:06.4]} 18.
Kxe2 {[%clk 0:00:39]} 18... Ne4 {[%clk 0:02:06.9]} 19. Be1 {[%clk 0:00:36.1]}
19... Rfe8 {[%clk 0:02:05.9]} 20. Kd3 {[%clk 0:00:36.6]} 20... b6 {[%clk
0:01:54.1]} 21. f3 {[%clk 0:00:34.1]} 21... Nd6 {[%clk 0:01:53.5]} 22. Bf2
{[%clk 0:00:29.4]} 22... Nb5 {[%clk 0:01:46.4]} 23. Rc1 {[%clk 0:00:27.1]} 23...
Rac8 {[%clk 0:01:44.8]} 24. Raa1 {[%clk 0:00:25.8]} 24... f6 {[%clk 0:01:39.8]}
25. g4 {[%clk 0:00:22.1]} 25... Kf7 {[%clk 0:01:38.7]} 26. Bg3 {[%clk
0:00:20.1]} 26... Ke6 {[%clk 0:01:37.2]} 27. h4 {[%clk 0:00:11.8]} 27... h6
{[%clk 0:01:35.9]} 28. Bf4 {[%clk 0:00:11.2]} 28... Kd7 {[%clk 0:01:34.3]} 29.
Bd2 {[%clk 0:00:11.4]} 29... Rxc1 {[%clk 0:01:05.3]} 30. Rxc1 {[%clk 0:00:11.4]}
30... a5 {[%clk 0:01:04]} 31. Rg1 {[%clk 0:00:08.2]} 31... Na7 {[%clk
0:01:01.2]} 32. g5 {[%clk 0:00:08]} 32... hxg5 {[%clk 0:01:01.1]} 33. hxg5
{[%clk 0:00:08.7]} 33... Nc6 {[%clk 0:00:57.4]} 34. gxf6 {[%clk 0:00:06.8]}
34... gxf6 {[%clk 0:00:58.3]} 35. Rg6 {[%clk 0:00:04.8]} 35... Ke6 {[%clk
0:00:57.6]} 36. Bg5 {[%clk 0:00:04.7]} 36... Rf8 {[%clk 0:00:55.9]} 37. Bh6
{[%clk 0:00:04.6]} 37... Rf7 {[%clk 0:00:55.1]} 38. Rg8 {[%clk 0:00:04.6]} 38...
Ra7 {[%clk 0:00:48.9]} 39. Rc8 {[%clk 0:00:04.3]} 39... Kd7 {[%clk 0:00:44.9]}
40. Rf8 {[%clk 0:00:04.6]} 40... Ke7 {[%clk 0:00:43.6]} 41. Rc8 {[%clk
0:00:04.4]} 41... Nb4+ {[%clk 0:00:37.6]} 42. Kd2 {[%clk 0:00:05]} 42... Kd7
{[%clk 0:00:37.4]} 43. Rg8 {[%clk 0:00:04.7]} 43... Kc6 {[%clk 0:00:33.8]} 44.
Rf8 {[%clk 0:00:04.3]} 44... a4 {[%clk 0:00:27.8]} 45. Rxf6+ {[%clk 0:00:04.7]}
45... Kb5 {[%clk 0:00:28.1]} 46. bxa4+ {[%clk 0:00:05.4]} 46... Rxa4 {[%clk
0:00:28.7]} 47. Bf4 {[%clk 0:00:05.6]} 47... Ra2+ {[%clk 0:00:26.8]} 48. Ke3
{[%clk 0:00:05.9]} 48... Ra3+ {[%clk 0:00:26.8]} 49. Ke2 {[%clk 0:00:05.6]}
49... Nc6 {[%clk 0:00:23.2]} 50. Be3 {[%clk 0:00:05.2]} 50... Ra2+ {[%clk
0:00:21.8]} 51. Kf1 {[%clk 0:00:04.4]} 51... Na5 {[%clk 0:00:21.7]} 52. f4
{[%clk 0:00:04.5]} 52... Nc4 {[%clk 0:00:21.1]} 53. Re6 {[%clk 0:00:04.5]} 53...
Ka4 {[%clk 0:00:19.9]} 54. f5 {[%clk 0:00:04.6]} 54... Ra1+ {[%clk 0:00:19.6]}
55. Kf2 {[%clk 0:00:04]} 55... Ra2+ {[%clk 0:00:20.1]} 56. Kf3 {[%clk
0:00:03.8]} 56... Ra1 {[%clk 0:00:20.6]} 57. Bf2 {[%clk 0:00:03.8]} 57... Rf1
{[%clk 0:00:20.8]} 58. f6 {[%clk 0:00:04.1]} 58... Rh1 {[%clk 0:00:13.4]} 59. f7
{[%clk 0:00:04.6]} 59... Rh8 {[%clk 0:00:13.9]} 60. Re8 {[%clk 0:00:05]} 60...
Rh3+ {[%clk 0:00:13.9]} 61. Kg2 {[%clk 0:00:04.9]} 61... Rh6 {[%clk 0:00:14.5]}
62. f8=Q {[%clk 0:00:05.2]} 62... Rg6+ {[%clk 0:00:15.4]} 63. Kf1 {[%clk
0:00:05.8]} 63... Nd2+ {[%clk 0:00:15.7]} 64. Ke2 {[%clk 0:00:06.4]} 64... Ne4
{[%clk 0:00:16.4]} 65. Ra8+ {[%clk 0:00:06.7]} 65... Kb3 {[%clk 0:00:16.5]} 66.
Qa3+ {[%clk 0:00:07.3]} 66... Kc4 {[%clk 0:00:17.1]} 67. Rc8+ {[%clk 0:00:07.7]}
67... Kb5 {[%clk 0:00:17.4]} 68. Qb3+ {[%clk 0:00:08.2]} 68... Ka6 {[%clk
0:00:17.7]} 69. Qxd5 {[%clk 0:00:08.4]} 69... Nc3+ {[%clk 0:00:17.1]} 70. Rxc3
{[%clk 0:00:08.6]} 1-0

[Event "Early-Titled-Tuesday-Blitz-January-30-2024"]
[Site "Chess.com"]
[Date "2024.01.30"]
[Round "9"]
[White "Savagelittlemole"]
[Black "Evgeny81"]
[Result "0-1"]
[WhiteElo "2489"]
[BlackElo "2715"]
[TimeControl "180+1"]
[EndTime "9:50:08 PST"]
[Termination "Evgeny81 won by resignation"]

1. e4 {[%clk 0:03:00.9]} 1... e6 {[%clk 0:02:59.6]} 2. d4 {[%clk 0:02:59.7]}
2... d5 {[%clk 0:02:59.9]} 3. Nd2 {[%clk 0:02:56.3]} 3... Nd7 {[%clk 0:02:59.9]}
4. Ngf3 {[%clk 0:02:54.8]} 4... Ne7 {[%clk 0:02:59.5]} 5. c3 {[%clk 0:02:52.7]}
5... c5 {[%clk 0:02:59.3]} 6. exd5 {[%clk 0:02:39.5]} 6... Nxd5 {[%clk
0:03:00.2]} 7. Nb3 {[%clk 0:02:28.5]} 7... Be7 {[%clk 0:02:55.7]} 8. Bd3 {[%clk
0:02:20.6]} 8... Qc7 {[%clk 0:02:53.5]} 9. dxc5 {[%clk 0:02:14.3]} 9... Nxc5
{[%clk 0:02:52.3]} 10. Nxc5 {[%clk 0:02:14.5]} 10... Qxc5 {[%clk 0:02:52.3]} 11.
O-O {[%clk 0:02:13.2]} 11... O-O {[%clk 0:02:52.5]} 12. Nd4 {[%clk 0:02:08.9]}
12... b6 {[%clk 0:02:45.2]} 13. Qh5 {[%clk 0:02:03.8]} 13... g6 {[%clk
0:02:37.9]} 14. Qe5 {[%clk 0:01:51.6]} 14... Bf6 {[%clk 0:02:25.5]} 15. Qg3
{[%clk 0:01:36]} 15... Bb7 {[%clk 0:02:17.5]} 16. Bh6 {[%clk 0:01:35]} 16...
Rfe8 {[%clk 0:02:14.8]} 17. Rae1 {[%clk 0:01:25.4]} 17... Bxd4 {[%clk
0:02:08.6]} 18. cxd4 {[%clk 0:01:24.8]} 18... Qxd4 {[%clk 0:02:09.5]} 19. Re4
{[%clk 0:01:05.2]} 19... Qxb2 {[%clk 0:02:05.3]} 20. Rh4 {[%clk 0:01:05.5]}
20... Qf6 {[%clk 0:01:57.3]} 21. Bg5 {[%clk 0:01:02.4]} 21... Qg7 {[%clk
0:01:56.7]} 22. Bh6 {[%clk 0:00:52.2]} 22... Qb2 {[%clk 0:01:47.7]} 23. Rb1
{[%clk 0:00:42.4]} 23... Qf6 {[%clk 0:01:41.2]} 24. Bg5 {[%clk 0:00:40.6]} 24...
Qg7 {[%clk 0:01:41.2]} 25. Bh6 {[%clk 0:00:40.7]} 25... Qf6 {[%clk 0:01:35.4]}
26. Bg5 {[%clk 0:00:40.3]} 26... Qh8 {[%clk 0:01:36.1]} 27. Rc4 {[%clk
0:00:18.2]} 27... Rac8 {[%clk 0:01:32.2]} 28. h4 {[%clk 0:00:17.8]} 28... Rxc4
{[%clk 0:01:25.1]} 29. Bxc4 {[%clk 0:00:18.7]} 29... Qd4 {[%clk 0:01:23.2]} 30.
Bxd5 {[%clk 0:00:13.4]} 30... Bxd5 {[%clk 0:01:14.9]} 31. Rc1 {[%clk 0:00:13.1]}
31... f6 {[%clk 0:01:09.4]} 32. Be3 {[%clk 0:00:12.4]} 32... Qe4 {[%clk
0:01:07.9]} 33. Rc7 {[%clk 0:00:12]} 33... a5 {[%clk 0:00:57.7]} 34. Bh6 {[%clk
0:00:11.6]} 34... e5 {[%clk 0:00:49.7]} 35. f3 {[%clk 0:00:07.9]} 35... Qd4+
{[%clk 0:00:37]} 36. Kh2 {[%clk 0:00:07]} 36... Bf7 {[%clk 0:00:37.5]} 37. h5
{[%clk 0:00:03.6]} 37... Qd6 {[%clk 0:00:29.8]} 38. Ra7 {[%clk 0:00:03.1]} 38...
Qb8 {[%clk 0:00:25.9]} 39. Rd7 {[%clk 0:00:02.8]} 39... Qc8 {[%clk 0:00:22.5]}
40. Ra7 {[%clk 0:00:02.8]} 40... Qf5 {[%clk 0:00:21.8]} 41. hxg6 {[%clk
0:00:02.6]} 41... hxg6 {[%clk 0:00:18.5]} 42. Be3 {[%clk 0:00:03.3]} 42... Qh5+
{[%clk 0:00:14]} 43. Qh3 {[%clk 0:00:03.4]} 43... Qxh3+ {[%clk 0:00:12.8]} 44.
Kxh3 {[%clk 0:00:04.3]} 44... Rb8 {[%clk 0:00:09.3]} 45. Ra6 {[%clk 0:00:04.2]}
45... Bxa2 {[%clk 0:00:08.8]} 46. Bxb6 {[%clk 0:00:03.4]} 46... Bc4 {[%clk
0:00:08.4]} 47. Rxa5 {[%clk 0:00:01.9]} 47... Rxb6 {[%clk 0:00:07.9]} 48. Ra7
{[%clk 0:00:02.7]} 48... Bf7 {[%clk 0:00:07.4]} 49. g4 {[%clk 0:00:02]} 49...
Kg7 {[%clk 0:00:07.7]} 50. Kg3 {[%clk 0:00:02.6]} 50... Rc6 {[%clk 0:00:08]} 51.
Rb7 {[%clk 0:00:02.7]} 51... Rd6 {[%clk 0:00:07.9]} 52. Re7 {[%clk 0:00:03.2]}
52... Rd4 {[%clk 0:00:07.8]} 53. Ra7 {[%clk 0:00:03.7]} 53... Rc4 {[%clk
0:00:06.5]} 54. Kf2 {[%clk 0:00:04.1]} 54... Kf8 {[%clk 0:00:06.8]} 55. Kg3
{[%clk 0:00:04.5]} 55... Rd4 {[%clk 0:00:07.2]} 56. Kf2 {[%clk 0:00:04.9]} 56...
Ke8 {[%clk 0:00:07.8]} 57. Kg3 {[%clk 0:00:05.3]} 57... Rd7 {[%clk 0:00:07.6]}
58. Ra8+ {[%clk 0:00:05.6]} 58... Ke7 {[%clk 0:00:08]} 59. Ra6 {[%clk
0:00:06.2]} 59... Rd6 {[%clk 0:00:08.1]} 60. Ra7+ {[%clk 0:00:06.8]} 60... Ke6
{[%clk 0:00:08.4]} 61. Ra3 {[%clk 0:00:07.1]} 61... Rc6 {[%clk 0:00:08.2]} 62.
Kf2 {[%clk 0:00:06.8]} 62... Be8 {[%clk 0:00:08.4]} 63. Ra8 {[%clk 0:00:06.2]}
63... Bd7 {[%clk 0:00:07.7]} 64. Rg8 {[%clk 0:00:06.9]} 64... g5 {[%clk
0:00:07.9]} 65. Ra8 {[%clk 0:00:07.2]} 65... Rd6 {[%clk 0:00:08.2]} 66. Ra3
{[%clk 0:00:07.2]} 66... Rd4 {[%clk 0:00:08.6]} 67. Kg3 {[%clk 0:00:07.9]} 67...
Bc6 {[%clk 0:00:08.9]} 68. Ra6 {[%clk 0:00:08.3]} 68... Kd6 {[%clk 0:00:09]} 69.
Ra3 {[%clk 0:00:07.3]} 69... Rf4 {[%clk 0:00:08.7]} 70. Kf2 {[%clk 0:00:07.6]}
70... Rxf3+ {[%clk 0:00:09]} 71. Rxf3 {[%clk 0:00:07.2]} 71... Bxf3 {[%clk
0:00:09.2]} 72. Kxf3 {[%clk 0:00:08.1]} 72... Kd5 {[%clk 0:00:09.6]} 73. Ke3
{[%clk 0:00:08.5]} 73... e4 {[%clk 0:00:10.1]} 0-1

[Event "Early-Titled-Tuesday-Blitz-January-30-2024"]
[Site "Chess.com"]
[Date "2024.01.30"]
[Round "9"]
[White "Karttunen"]
[Black "Hongjin"]
[Result "1-0"]
[WhiteElo "2634"]
[BlackElo "2789"]
[TimeControl "180+1"]
[EndTime "9:50:16 PST"]
[Termination "Karttunen won by resignation"]

1. d4 {[%clk 0:03:00.9]} 1... Nf6 {[%clk 0:02:55.9]} 2. c4 {[%clk 0:03:00.4]}
2... e6 {[%clk 0:02:56.3]} 3. Nc3 {[%clk 0:02:57.3]} 3... Bb4 {[%clk 0:02:56.2]}
4. e3 {[%clk 0:02:56.6]} 4... O-O {[%clk 0:02:55.5]} 5. Bd3 {[%clk 0:02:54.3]}
5... d5 {[%clk 0:02:55.2]} 6. Nf3 {[%clk 0:02:49.3]} 6... c5 {[%clk 0:02:55.4]}
7. a3 {[%clk 0:02:48.9]} 7... cxd4 {[%clk 0:02:54.8]} 8. axb4 {[%clk 0:02:32.8]}
8... dxc3 {[%clk 0:02:52.6]} 9. bxc3 {[%clk 0:02:32.1]} 9... dxc4 {[%clk
0:02:52.4]} 10. Bxc4 {[%clk 0:02:27.2]} 10... Qxd1+ {[%clk 0:02:53.3]} 11. Kxd1
{[%clk 0:02:27]} 11... Ne4 {[%clk 0:02:54.2]} 12. Kc2 {[%clk 0:02:20]} 12...
Nxf2 {[%clk 0:02:52.5]} 13. Rf1 {[%clk 0:02:19.8]} 13... Ne4 {[%clk 0:02:52]}
14. Bd3 {[%clk 0:02:16.9]} 14... Nf6 {[%clk 0:02:51.5]} 15. e4 {[%clk
0:02:14.7]} 15... Nc6 {[%clk 0:02:51.8]} 16. b5 {[%clk 0:02:09.3]} 16... Nb8
{[%clk 0:02:46.3]} 17. Be3 {[%clk 0:02:05.6]} 17... a6 {[%clk 0:02:42.8]} 18. h3
{[%clk 0:01:55]} 18... Bd7 {[%clk 0:02:40.3]} 19. g4 {[%clk 0:01:51.8]} 19...
Rc8 {[%clk 0:02:28.8]} 20. g5 {[%clk 0:01:33.6]} 20... Ne8 {[%clk 0:02:28.7]}
21. Ne5 {[%clk 0:01:32.8]} 21... f6 {[%clk 0:02:26.4]} 22. gxf6 {[%clk
0:01:31.1]} 22... Nxf6 {[%clk 0:02:25.9]} 23. Bg5 {[%clk 0:01:22.4]} 23... Rf8
{[%clk 0:02:12]} 24. Rg1 {[%clk 0:01:15.1]} 24... Kh8 {[%clk 0:02:00.1]} 25. Be3
{[%clk 0:00:54.9]} 25... Be8 {[%clk 0:01:52.5]} 26. Bc5 {[%clk 0:00:46.4]} 26...
Rg8 {[%clk 0:01:48.7]} 27. Bd6 {[%clk 0:00:40.5]} 27... Nbd7 {[%clk 0:01:47.3]}
28. bxa6 {[%clk 0:00:37.5]} 28... bxa6 {[%clk 0:01:47.3]} 29. Nxd7 {[%clk
0:00:35.8]} 29... Bxd7 {[%clk 0:01:47]} 30. e5 {[%clk 0:00:33.1]} 30... Nd5
{[%clk 0:01:45.3]} 31. Bxa6 {[%clk 0:00:30]} 31... Ne3+ {[%clk 0:01:37.9]} 32.
Kd2 {[%clk 0:00:29.2]} 32... Nf5 {[%clk 0:01:34.1]} 33. Bc7 {[%clk 0:00:28.8]}
33... Bc6 {[%clk 0:01:31]} 34. Bc4 {[%clk 0:00:26.2]} 34... Rae8 {[%clk
0:01:22.1]} 35. Ra7 {[%clk 0:00:25.1]} 35... Nh4 {[%clk 0:01:19.4]} 36. Ke3
{[%clk 0:00:22.8]} 36... Re7 {[%clk 0:01:16.8]} 37. Bb6 {[%clk 0:00:22.4]} 37...
Rxa7 {[%clk 0:01:10.4]} 38. Bxa7 {[%clk 0:00:23.3]} 38... Rf8 {[%clk 0:01:10.1]}
39. Rf1 {[%clk 0:00:21.3]} 39... Nf5+ {[%clk 0:01:08]} 40. Kd2 {[%clk 0:00:21]}
40... Rd8+ {[%clk 0:01:07.5]} 41. Kc1 {[%clk 0:00:19.9]} 41... Bd5 {[%clk
0:01:07.5]} 42. Bd3 {[%clk 0:00:17.6]} 42... Ra8 {[%clk 0:00:54.3]} 43. Bc5
{[%clk 0:00:16.3]} 43... Rc8 {[%clk 0:00:45.5]} 44. Bb4 {[%clk 0:00:15.3]} 44...
Nd4 {[%clk 0:00:40.2]} 45. Kb2 {[%clk 0:00:15.1]} 45... Nf3 {[%clk 0:00:38.6]}
46. Bd6 {[%clk 0:00:06.1]} 46... h6 {[%clk 0:00:28.8]} 47. c4 {[%clk 0:00:06.1]}
47... Bc6 {[%clk 0:00:26.8]} 48. Kc3 {[%clk 0:00:05.6]} 48... Ra8 {[%clk
0:00:25.4]} 49. Be2 {[%clk 0:00:03.1]} 49... Ra3+ {[%clk 0:00:22.7]} 50. Bxa3
{[%clk 0:00:02.5]} 50... Nxe5 {[%clk 0:00:21.3]} 51. Rf8+ {[%clk 0:00:02.4]}
51... Kh7 {[%clk 0:00:21.6]} 52. Bd3+ {[%clk 0:00:02.9]} 52... Nxd3 {[%clk
0:00:21.8]} 53. Kxd3 {[%clk 0:00:03.8]} 53... Kg6 {[%clk 0:00:22.4]} 54. Rc8
{[%clk 0:00:03.9]} 54... Bg2 {[%clk 0:00:21.7]} 55. h4 {[%clk 0:00:04.3]} 55...
e5 {[%clk 0:00:22.2]} 56. Rc7 {[%clk 0:00:04.6]} 56... Kf6 {[%clk 0:00:22]} 57.
Bb2 {[%clk 0:00:04.8]} 57... g5 {[%clk 0:00:21.8]} 58. Rc5 {[%clk 0:00:05.2]}
58... Bf1+ {[%clk 0:00:19.4]} 59. Ke3 {[%clk 0:00:05.2]} 59... Kg6 {[%clk
0:00:19.2]} 60. Bxe5 {[%clk 0:00:05.7]} 60... gxh4 {[%clk 0:00:19.3]} 61. Bh2
{[%clk 0:00:05.7]} 61... h3 {[%clk 0:00:19.6]} 62. Kd4 {[%clk 0:00:06]} 62...
Kf7 {[%clk 0:00:19.6]} 63. Re5 {[%clk 0:00:06.3]} 63... Bg2 {[%clk 0:00:19.5]}
64. c5 {[%clk 0:00:06.8]} 64... Kf6 {[%clk 0:00:19.7]} 65. Re3 {[%clk
0:00:06.8]} 65... Kf5 {[%clk 0:00:19.3]} 66. Re8 {[%clk 0:00:06.6]} 66... Kf6
{[%clk 0:00:19.7]} 67. Rc8 {[%clk 0:00:06.2]} 67... Ke6 {[%clk 0:00:19.5]} 68.
Ke3 {[%clk 0:00:06.3]} 68... Kd7 {[%clk 0:00:19.7]} 69. Rh8 {[%clk 0:00:06.4]}
69... Kc6 {[%clk 0:00:19.6]} 70. Kd4 {[%clk 0:00:05.9]} 70... Kd7 {[%clk
0:00:18]} 71. Rxh6 {[%clk 0:00:06]} 71... Kc8 {[%clk 0:00:18.7]} 72. Rd6 {[%clk
0:00:06.1]} 72... Kb7 {[%clk 0:00:19.1]} 73. Kc4 {[%clk 0:00:06.4]} 73... Kc8
{[%clk 0:00:18.4]} 74. Kb5 {[%clk 0:00:06.8]} 74... Kb7 {[%clk 0:00:18.9]} 75.
Rd7+ {[%clk 0:00:07.1]} 75... Kc8 {[%clk 0:00:19.5]} 76. Rg7 {[%clk 0:00:07.7]}
76... Kd8 {[%clk 0:00:19]} 77. c6 {[%clk 0:00:08.1]} 77... Kc8 {[%clk
0:00:19.5]} 78. Kb6 {[%clk 0:00:08.3]} 78... Kd8 {[%clk 0:00:19.8]} 79. c7+
{[%clk 0:00:08.6]} 79... Kc8 {[%clk 0:00:19.1]} 80. Rg8+ {[%clk 0:00:09.1]} 1-0

[Event "Early-Titled-Tuesday-Blitz-January-30-2024"]
[Site "Chess.com"]
[Date "2024.01.30"]
[Round "9"]
[White "Sjakkerntobi"]
[Black "Nekoo04"]
[Result "1-0"]
[WhiteElo "2517"]
[BlackElo "2393"]
[TimeControl "180+1"]
[EndTime "9:50:16 PST"]
[Termination "Sjakkerntobi won on time"]

1. e4 {[%clk 0:03:00.9]} 1... c5 {[%clk 0:02:48.7]} 2. Nf3 {[%clk 0:02:59.9]}
2... d6 {[%clk 0:02:48.1]} 3. Nc3 {[%clk 0:02:56.8]} 3... Nf6 {[%clk 0:02:46.9]}
4. e5 {[%clk 0:02:57]} 4... dxe5 {[%clk 0:02:46.9]} 5. Nxe5 {[%clk 0:02:56.8]}
5... a6 {[%clk 0:02:45.4]} 6. Bc4 {[%clk 0:02:55.2]} 6... e6 {[%clk 0:02:44]} 7.
O-O {[%clk 0:02:54.2]} 7... Nbd7 {[%clk 0:02:38.3]} 8. Nxd7 {[%clk 0:02:52.4]}
8... Bxd7 {[%clk 0:02:38.1]} 9. d4 {[%clk 0:02:44.8]} 9... b5 {[%clk 0:02:19.9]}
10. Be2 {[%clk 0:02:44.5]} 10... cxd4 {[%clk 0:02:20]} 11. Qxd4 {[%clk
0:02:42.5]} 11... Bc6 {[%clk 0:02:20.7]} 12. Qh4 {[%clk 0:02:35.1]} 12... b4
{[%clk 0:02:08.2]} 13. Nd1 {[%clk 0:02:13.9]} 13... Be7 {[%clk 0:02:04]} 14. Qg3
{[%clk 0:02:13.2]} 14... h5 {[%clk 0:01:56.9]} 15. Bg5 {[%clk 0:02:07.2]} 15...
h4 {[%clk 0:01:49.8]} 16. Qh3 {[%clk 0:02:04.1]} 16... Nh5 {[%clk 0:01:31.2]}
17. Bxe7 {[%clk 0:01:52.9]} 17... Qxe7 {[%clk 0:01:26]} 18. Bf3 {[%clk
0:01:52.8]} 18... Qb7 {[%clk 0:00:53.6]} 19. Bxc6+ {[%clk 0:01:49.7]} 19... Qxc6
{[%clk 0:00:54.5]} 20. Qg4 {[%clk 0:01:41.6]} 20... Nf6 {[%clk 0:00:31.7]} 21.
Qh3 {[%clk 0:01:36.1]} 21... Qxc2 {[%clk 0:00:27.5]} 22. Ne3 {[%clk 0:01:33.9]}
22... Qe4 {[%clk 0:00:17.7]} 23. Rfe1 {[%clk 0:01:30.1]} 23... O-O {[%clk
0:00:17.7]} 24. Rad1 {[%clk 0:01:21.8]} 24... Rac8 {[%clk 0:00:16.7]} 25. Nd5
{[%clk 0:01:19.6]} 25... Qxe1+ {[%clk 0:00:09.1]} 26. Rxe1 {[%clk 0:01:19]}
26... Nxd5 {[%clk 0:00:10]} 27. Qxh4 {[%clk 0:01:18]} 27... Rc2 {[%clk
0:00:09.8]} 28. Qd4 {[%clk 0:01:02.8]} 28... Rfc8 {[%clk 0:00:09.6]} 29. h3
{[%clk 0:00:57.3]} 29... a5 {[%clk 0:00:07.9]} 30. Re4 {[%clk 0:00:50.4]} 30...
Kf8 {[%clk 0:00:05.5]} 31. Rh4 {[%clk 0:00:45.4]} 31... Ke7 {[%clk 0:00:03.6]}
32. Qxg7 {[%clk 0:00:43.3]} 32... Re2 {[%clk 0:00:03.3]} 33. Qg5+ {[%clk
0:00:36.2]} 33... Kd7 {[%clk 0:00:03.2]} 34. Rh7 {[%clk 0:00:34.3]} 34... Rcc2
{[%clk 0:00:03.1]} 35. Rxf7+ {[%clk 0:00:33.8]} 35... Kc6 {[%clk 0:00:04]} 36.
Qd8 {[%clk 0:00:27.2]} 36... Rxb2 {[%clk 0:00:03.9]} 37. Qc8+ {[%clk 0:00:27.4]}
37... Kb5 {[%clk 0:00:03.7]} 38. Qe8+ {[%clk 0:00:22.4]} 38... Kc4 {[%clk
0:00:03.5]} 39. Qc6+ {[%clk 0:00:20.2]} 39... Kd4 {[%clk 0:00:03.3]} 40. Qc1
{[%clk 0:00:07.2]} 40... Rxa2 {[%clk 0:00:03.5]} 41. Qd1+ {[%clk 0:00:07.6]}
41... Red2 {[%clk 0:00:02.8]} 42. Qg4+ {[%clk 0:00:07.8]} 42... Kc5 {[%clk
0:00:02]} 43. Qxe6 {[%clk 0:00:08]} 43... b3 {[%clk 0:00:01.5]} 44. Rf8 {[%clk
0:00:06.5]} 44... b2 {[%clk 0:00:01.2]} 45. Rc8+ {[%clk 0:00:06.9]} 45... Kb4
{[%clk 0:00:01.4]} 46. Qe4+ {[%clk 0:00:06.3]} 46... Kb3 {[%clk 0:00:01.3]} 47.
Qc4+ {[%clk 0:00:06.2]} 47... Ka3 {[%clk 0:00:01.9]} 48. Qc5+ {[%clk 0:00:05.2]}
48... Nb4 {[%clk 0:00:02.5]} 49. Qc3+ {[%clk 0:00:04.9]} 49... Ka4 {[%clk
0:00:02.4]} 50. Qxd2 {[%clk 0:00:01.4]} 50... b1=Q+ {[%clk 0:00:02.9]} 51. Qc1
{[%clk 0:00:02.3]} 51... Ra1 {[%clk 0:00:02.7]} 52. Qxb1 {[%clk 0:00:02.7]}
52... Rxb1+ {[%clk 0:00:03.6]} 53. Kh2 {[%clk 0:00:03.5]} 53... Kb3 {[%clk
0:00:04.2]} 54. h4 {[%clk 0:00:04.2]} 54... a4 {[%clk 0:00:04.6]} 55. Ra8 {[%clk
0:00:03.9]} 55... a3 {[%clk 0:00:04.5]} 56. h5 {[%clk 0:00:04.8]} 56... Rf1
{[%clk 0:00:04.3]} 57. Kg3 {[%clk 0:00:04.7]} 57... Rh1 {[%clk 0:00:03.7]} 58.
Kg4 {[%clk 0:00:04]} 58... Rh2 {[%clk 0:00:04.2]} 59. g3 {[%clk 0:00:03]} 59...
Rxf2 {[%clk 0:00:04.4]} 60. h6 {[%clk 0:00:03.7]} 60... Rf6 {[%clk 0:00:04.6]}
61. Kg5 {[%clk 0:00:04.2]} 61... Rb6 {[%clk 0:00:02.7]} 62. h7 {[%clk
0:00:03.9]} 62... Ra6 {[%clk 0:00:01.6]} 63. Rxa6 {[%clk 0:00:03.5]} 63... Nxa6
{[%clk 0:00:02]} 64. h8=Q {[%clk 0:00:04.4]} 64... a2 {[%clk 0:00:02.6]} 65. Qa1
{[%clk 0:00:04.7]} 65... Nb4 {[%clk 0:00:02.1]} 66. Qd1+ {[%clk 0:00:04.5]}
66... Nc2 {[%clk 0:00:01.5]} 67. Qd3+ {[%clk 0:00:04.9]} 67... Kb2 {[%clk
0:00:02]} 68. Qb5+ {[%clk 0:00:05]} 68... Kc1 {[%clk 0:00:02.2]} 69. Qf1+ {[%clk
0:00:04.5]} 69... Kd2 {[%clk 0:00:01.6]} 70. Qf2+ {[%clk 0:00:04.3]} 70... Kc1
{[%clk 0:00:01.7]} 71. Qf4+ {[%clk 0:00:04.2]} 1-0